[Event "Kurnosov Memorial Rapid 2019"]
[Site "Chelyabinsk"]
[Date "2019.09.06"]
[Round "3.2"]
[White "Balashov, Yuri S"]
[Black "Bareev, Evgeny"]
[Result "0-1"]
[ECO "D10"]
[WhiteElo "2466"]
[BlackElo "2643"]
[Annotator "RC"]
[PlyCount "50"]
[EventDate "2019.09.06"]
[EventType "swiss"]
[EventCountry "RUS"]
[SourceTitle "playchess.com"]
[Source "ChessBase"]
[SourceQuality "1"]
[TimeControl "900+10"]

1. d4 {[%emt 0:00:00]} d5 {[%emt 0:00:00]} 2. c4 {[%emt 0:00:00]} c6 {[%emt 0:00:00]} 3. Nc3 {[%emt 0:00:00]} Nf6 {[%emt 0:00:00]} 4. e3 {[%emt 0:00:00]} Bf5 {[%emt 0:00:02]} 5. Qb3 {[%emt 0:00:04]} Qb6 {[%emt 0:00:34]} 6. cxd5 {[%emt 0:00:33]} Qxb3 {[%emt 0:01:02]} 7. axb3 {[%emt 0:00:02]} Nxd5 {[%emt 0:00:02]} 8. Nxd5 {[%emt 0:00:56]} cxd5 {[%emt 0:00:02]} 9. Bd2 {[%emt 0:00:26]} Nc6 {[%emt 0:00:51]} 10. Bb5 {[%emt 0:00:50]} Bd7 {[%emt 0:00:24]} 11. Ne2 {[%emt 0:00:32]} e6 {[%emt 0:00:11]} 12. O-O {[%emt 0:00:15]} Bd6 {[%emt 0:00:55]} 13. Nc3 {[%emt 0:00:27]} Ke7 {[%emt 0:00:31]} 14. Na4 {[%emt 0:00:31]} Nxd4 {[%emt 0:00:40]} 15. exd4 {[%emt 0:00:26]} Bxb5 {[%emt 0:00:02]} 16. Rfe1 {[%emt 0:00:01]} Bxa4 {[%emt 0:01:13]} 17. Rxa4 {[%emt 0:00:15]} Rhc8 {[%emt 0:00:05]} 18. Bc3 {[%emt 0:02:07]} b5 {[%emt 0:00:43]} 19. Ra6 {[%emt 0:00:02]} b4 {[%emt 0:00:03]} 20. Bd2 {[%emt 0:00:02]} Rc2 {[%emt 0:00:02]} 21. Bc1 {[%emt 0:00:12]} Bc7 {[%emt 0:00:22]} 22. Rd1 {[%emt 0:00:49]} Bb6 {[%emt 0:00:28]} 23. Kf1 {[%emt 0:00:07]} Rac8 {[%emt 0:00:16]} 24. Bd2 {[%emt 0:00:06]} Rxb2 {[%emt 0:00:14]} 25. Bxb4+ {[%emt 0:00:01]} Kf6 {[%emt 0:02:09]} 0-1

[Event "Kurnosov Memorial Rapid 2019"]
[Site "Chelyabinsk"]
[Date "2019.09.06"]
[Round "3.4"]
[White "Vokarev, Sergey"]
[Black "Bocharov, Dmitry"]
[Result "0-1"]
[ECO "A04"]
[WhiteElo "2443"]
[BlackElo "2519"]
[Annotator "ChessBase"]
[PlyCount "80"]
[EventDate "2019.09.06"]
[EventType "swiss"]
[EventCountry "RUS"]
[SourceTitle "playchess.com"]
[Source "ChessBase"]
[SourceQuality "1"]
[TimeControl "900+10"]

1. Nf3 {[%emt 0:00:00]} c5 {[%emt 0:00:00]} 2. g3 {[%emt 0:00:06]} Nc6 {[%emt 0:00:05]} 3. d4 {[%emt 0:00:33]} cxd4 {[%emt 0:00:05]} 4. Nxd4 {[%emt 0:00:01]} g6 {[%emt 0:00:12]} 5. Bg2 {[%emt 0:00:13]} Bg7 {[%emt 0:00:02]} 6. Nxc6 {[%emt 0:01:28]} bxc6 {[%emt 0:00:03]} 7. O-O {[%emt 0:00:13]} Nf6 {[%emt 0:00:03]} 8. c4 {[%emt 0:00:09]} O-O {[%emt 0:00:17]} 9. Qc2 {[%emt 0:03:30]} d5 {[%emt 0:00:48]} 10. Nd2 {[%emt 0:00:23]} Rb8 {[%emt 0:00:35]} 11. Rb1 {[%emt 0:01:15]} Qa5 {[%emt 0:02:14]} 12. a3 {[%emt 0:01:17]} Rd8 {[%emt 0:01:22]} 13. b4 {[%emt 0:00:45]} Qa6 {[%emt 0:00:18]} 14. e4 {[%emt 0:00:28]} Be6 {[%emt 0:01:58]} 15. Nb3 {[%emt 0:03:33]} Nxe4 {[%emt 0:00:31]} 16. b5 {[%emt 0:02:07]} Qa4 {[%emt 0:01:11]} 17. bxc6 {[%emt 0:00:48]} Qxc6 {[%emt 0:00:34]} 18. Na5 {[%emt 0:00:26]} Qa6 {[%emt 0:02:21]} 19. Rxb8 {[%emt 0:00:06]} Rxb8 {[%emt 0:00:02]} 20. cxd5 {[%emt 0:00:14]} Bxd5 {[%emt 0:00:12]} 21. Bxe4 {[%emt 0:00:08]} Qxa5 {[%emt 0:00:24]} 22. Bxd5 {[%emt 0:00:18]} Qxd5 {[%emt 0:00:08]} 23. Be3 {[%emt 0:00:25]} a6 {[%emt 0:00:25]} 24. Rd1 {[%emt 0:00:07]} Qb7 {[%emt 0:00:09]} 25. Qa4 {[%emt 0:00:16]} h5 {[%emt 0:00:42]} 26. Rd7 {[%emt 0:00:09]} Qf3 {[%emt 0:00:32]} 27. Qd1 {[%emt 0:00:03]} Qxd1+ {[%emt 0:00:04]} 28. Rxd1 {[%emt 0:00:01]} Rc8 {[%emt 0:02:19]} 29. Rd5 {[%emt 0:00:08]} Bc3 {[%emt 0:00:23]} 30. Bd4 {[%emt 0:00:17]} e6 {[%emt 0:00:41]} 31. Rd6 {[%emt 0:00:01]} Bxd4 {[%emt 0:00:01]} 32. Rxd4 {[%emt 0:00:01]} Rc5 {[%emt 0:00:07]} 33. Kg2 {[%emt 0:00:15]} Kg7 {[%emt 0:00:02]} 34. h4 {[%emt 0:00:01]} Kf6 {[%emt 0:00:06]} 35. Ra4 {[%emt 0:00:05]} a5 {[%emt 0:00:08]} 36. Rd4 {[%emt 0:00:18]} Ke7 {[%emt 0:00:26]} 37. a4 {[%emt 0:00:31]} e5 {[%emt 0:00:21]} 38. Re4 {[%emt 0:00:03]} Ke6 {[%emt 0:00:05]} 39. g4 {[%emt 0:00:20]} Kd5 {[%emt 0:00:13]} 40. Re2 {[%emt 0:00:12]} hxg4 {[%emt 0:00:08]} 0-1

[Event "Kurnosov Memorial Rapid 2019"]
[Site "Chelyabinsk"]
[Date "2019.09.06"]
[Round "3.5"]
[White "Bocharov, Ivan"]
[Black "Khusenkhojaev, Muhammad"]
[Result "0-1"]
[ECO "A16"]
[WhiteElo "2557"]
[BlackElo "2450"]
[Annotator "ChessBase"]
[PlyCount "106"]
[EventDate "2019.09.06"]
[EventType "swiss"]
[EventCountry "RUS"]
[SourceTitle "playchess.com"]
[Source "ChessBase"]
[SourceQuality "1"]
[TimeControl "900+10"]

1. c4 {[%emt 0:00:00]} Nf6 {[%emt 0:00:00]} 2. Nc3 {[%emt 0:00:00]} d5 {[%emt 0:00:00]} 3. cxd5 {[%emt 0:00:07]} Nxd5 {[%emt 0:00:00]} 4. Nf3 {[%emt 0:00:09]} g6 {[%emt 0:00:00]} 5. h4 {[%emt 0:00:07]} Bg7 {[%emt 0:00:19]} 6. h5 {[%emt 0:00:08]} Nc6 {[%emt 0:00:02]} 7. h6 {[%emt 0:01:31]} Bf6 {[%emt 0:00:01]} 8. Ne4 {[%emt 0:00:10]} e5 {[%emt 0:00:01]} 9. Nxf6+ {[%emt 0:00:36]} Qxf6 {[%emt 0:00:13]} 10. d3 {[%emt 0:00:13]} Qe7 {[%emt 0:00:10]} 11. Qb3 {[%emt 0:02:40]} Nb6 {[%emt 0:00:24]} 12. Be3 {[%emt 0:01:52]} Be6 {[%emt 0:00:25]} 13. Qc2 {[%emt 0:00:59]} Nb4 {[%emt 0:01:20]} 14. Qd2 {[%emt 0:01:15]} f6 {[%emt 0:00:15]} 15. a3 {[%emt 0:00:29]} N4d5 {[%emt 0:00:06]} 16. Rc1 {[%emt 0:00:02]} Nxe3 {[%emt 0:00:35]} 17. Qxe3 {[%emt 0:00:01]} Nd5 {[%emt 0:00:36]} 18. Qe4 {[%emt 0:00:11]} O-O-O {[%emt 0:00:14]} 19. g3 {[%emt 0:00:08]} Kb8 {[%emt 0:00:17]} 20. Bh3 {[%emt 0:00:07]} Bxh3 {[%emt 0:00:24]} 21. Rxh3 {[%emt 0:00:01]} Rhe8 {[%emt 0:00:11]} 22. g4 {[%emt 0:01:30]} Nf4 {[%emt 0:00:34]} 23. Rg3 {[%emt 0:00:03]} Qf8 {[%emt 0:01:37]} 24. g5 {[%emt 0:00:02]} f5 {[%emt 0:00:01]} 25. Qc4 {[%emt 0:00:17]} Qe7 {[%emt 0:00:01]} 26. Nd2 {[%emt 0:00:34]} Ne6 27. Nf3 {[%emt 0:01:47]} Nf4 {[%emt 0:01:49]} 28. Nd2 {[%emt 0:00:05]} Qd6 {[%emt 0:01:03]} 29. Qc5 {[%emt 0:00:11]} Qd7 {[%emt 0:00:46]} 30. Nf3 {[%emt 0:01:52]} e4 {[%emt 0:00:23]} 31. Ne5 {[%emt 0:00:13]} Qe7 {[%emt 0:01:40]} 32. d4 {[%emt 0:00:41]} Qxc5 {[%emt 0:00:14]} 33. Rxc5 {[%emt 0:00:02]} Rxd4 {[%emt 0:00:54]} 34. Rb3 {[%emt 0:00:07]} Kc8 {[%emt 0:00:26]} 35. e3 {[%emt 0:00:50]} Rd5 36. Rxd5 {[%emt 0:00:04]} Nxd5 {[%emt 0:00:03]} 37. Nc4 {[%emt 0:00:01]} Re6 {[%emt 0:00:39]} 38. f4 {[%emt 0:01:13]} Rc6 {[%emt 0:00:47]} 39. Ne5 {[%emt 0:00:02]} Rc2 {[%emt 0:00:02]} 40. a4 {[%emt 0:00:08]} a6 {[%emt 0:00:33]} 41. a5 {[%emt 0:00:08]} c5 {[%emt 0:00:09]} 42. Kd1 {[%emt 0:00:14]} Rh2 {[%emt 0:00:15]} 43. Nc4 {[%emt 0:00:45]} Kc7 {[%emt 0:00:06]} 44. Kc1 {[%emt 0:00:04]} Nb4 {[%emt 0:00:07]} 45. Kd1 {[%emt 0:00:03]} Kc6 {[%emt 0:00:13]} 46. Ne5+ {[%emt 0:00:01]} Kb5 {[%emt 0:00:07]} 47. Nd7 {[%emt 0:00:13]} c4 {[%emt 0:00:39]} 48. Ra3 {[%emt 0:00:27]} Nd3 {[%emt 0:00:13]} 49. Rc3 {[%emt 0:00:25]} Nxb2+ {[%emt 0:00:12]} 50. Kc1 {[%emt 0:00:00]} Nd3+ {[%emt 0:00:02]} 51. Kb1 {[%emt 0:00:01]} Kb4 {[%emt 0:00:17]} 52. Rc2 {[%emt 0:00:01]} Rxc2 {[%emt 0:00:26]} 53. Kxc2 {[%emt 0:00:01]} c3 {[%emt 0:00:05]} 0-1

[Event "Kurnosov Memorial Rapid 2019"]
[Site "Chelyabinsk"]
[Date "2019.09.06"]
[Round "3.6"]
[White "Shaposhnikov, Evgeny"]
[Black "Lobanov, Sergei"]
[Result "1/2-1/2"]
[ECO "A20"]
[WhiteElo "2572"]
[BlackElo "2515"]
[Annotator "ChessBase"]
[PlyCount "108"]
[EventDate "2019.09.06"]
[EventType "swiss"]
[EventCountry "RUS"]
[SourceTitle "playchess.com"]
[Source "ChessBase"]
[SourceQuality "1"]
[TimeControl "900+10"]

1. c4 {[%emt 0:00:00]} e5 {[%emt 0:00:00]} 2. g3 {[%emt 0:00:00]} Nf6 {[%emt 0:00:00]} 3. Bg2 {[%emt 0:00:00]} c6 {[%emt 0:00:00]} 4. Nf3 {[%emt 0:00:00]} e4 {[%emt 0:00:09]} 5. Nd4 {[%emt 0:00:00]} d5 {[%emt 0:00:08]} 6. cxd5 {[%emt 0:00:01]} Qxd5 {[%emt 0:00:04]} 7. Nc2 {[%emt 0:00:02]} Qh5 {[%emt 0:00:48]} 8. h3 {[%emt 0:00:06]} Bd6 {[%emt 0:00:46]} 9. Nc3 {[%emt 0:00:05]} Qg6 {[%emt 0:00:02]} 10. Ne3 {[%emt 0:01:07]} O-O {[%emt 0:00:09]} 11. b3 {[%emt 0:00:46]} Na6 {[%emt 0:01:08]} 12. Bb2 {[%emt 0:00:05]} Nc5 {[%emt 0:00:18]} 13. Qc2 {[%emt 0:00:20]} Re8 {[%emt 0:00:32]} 14. b4 {[%emt 0:00:40]} Ncd7 {[%emt 0:00:53]} 15. a3 {[%emt 0:00:05]} a5 {[%emt 0:00:30]} 16. bxa5 {[%emt 0:00:27]} Nc5 {[%emt 0:00:37]} 17. Na4 {[%emt 0:00:37]} Nxa4 {[%emt 0:03:48]} 18. Qxa4 {[%emt 0:00:02]} Bc7 {[%emt 0:00:02]} 19. Bc3 {[%emt 0:00:34]} h5 {[%emt 0:01:33]} 20. O-O {[%emt 0:01:03]} h4 {[%emt 0:00:31]} 21. g4 {[%emt 0:01:55]} Nxg4 {[%emt 0:01:47]} 22. hxg4 {[%emt 0:00:02]} Bxg4 {[%emt 0:00:01]} 23. f4 {[%emt 0:01:30]} Bxe2 {[%emt 0:00:11]} 24. Rf2 {[%emt 0:01:26]} Bb5 {[%emt 0:00:01]} 25. Qd1 {[%emt 0:01:03]} h3 {[%emt 0:00:40]} 26. Kh1 {[%emt 0:02:36]} hxg2+ {[%emt 0:00:43]} 27. Rxg2 {[%emt 0:00:01]} Qh6+ {[%emt 0:00:02]} 28. Kg1 {[%emt 0:00:05]} Bxa5 {[%emt 0:03:44]} 29. Bxg7 {[%emt 0:00:09]} Qxg7 {[%emt 0:00:04]} 30. Rxg7+ {[%emt 0:00:06]} Kxg7 {[%emt 0:00:00]} 31. Qg4+ {[%emt 0:00:11]} Kf6 {[%emt 0:00:17]} 32. Kf2 {[%emt 0:00:25]} Bd3 {[%emt 0:00:14]} 33. Rh1 {[%emt 0:00:37]} Bxd2 {[%emt 0:00:24]} 34. Rh7 {[%emt 0:00:25]} Bxe3+ {[%emt 0:00:16]} 35. Kxe3 {[%emt 0:00:02]} Bc4 {[%emt 0:00:14]} 36. Qg5+ {[%emt 0:01:03]} Ke6 {[%emt 0:00:01]} 37. Qc5 {[%emt 0:00:06]} Bd5 {[%emt 0:00:14]} 38. Rh5 {[%emt 0:00:46]} Kd7 {[%emt 0:00:16]} 39. f5 {[%emt 0:00:03]} Kc7 {[%emt 0:00:07]} 40. Rh6 {[%emt 0:00:10]} Rad8 {[%emt 0:00:12]} 41. a4 {[%emt 0:00:08]} b6 {[%emt 0:00:04]} 42. Qb4 {[%emt 0:00:16]} Ra8 {[%emt 0:00:07]} 43. Qd6+ Kb7 44. Rh2 {[%emt 0:00:47]} Rh8 {[%emt 0:00:17]} 45. Rb2 {[%emt 0:00:43]} Rxa4 {[%emt 0:00:14]} 46. Qd7+ {[%emt 0:00:18]} Ka6 {[%emt 0:00:01]} 47. Qc7 {[%emt 0:00:01]} Rh3+ {[%emt 0:00:21]} 48. Kf4 {[%emt 0:00:02]} e3+ {[%emt 0:00:04]} 49. Kg5 {[%emt 0:00:09]} b5 {[%emt 0:00:01]} 50. Rc2 {[%emt 0:00:48]} Rhh4 {[%emt 0:00:17]} 51. Qc8+ {[%emt 0:00:08]} Ka5 {[%emt 0:00:12]} 52. Qc7+ {[%emt 0:00:14]} Ka6 {[%emt 0:00:02]} 53. Qc8+ {[%emt 0:00:19]} Ka5 {[%emt 0:00:06]} 54. Qc7+ {[%emt 0:00:02]} Ka6 {[%emt 0:00:01]} 1/2-1/2

[Event "Kurnosov Memorial Rapid 2019"]
[Site "Chelyabinsk"]
[Date "2019.09.06"]
[Round "3.7"]
[White "Yudin, Sergei"]
[Black "Kabanov, Nikolai"]
[Result "1-0"]
[ECO "C44"]
[WhiteElo "2494"]
[BlackElo "2455"]
[Annotator "ChessBase"]
[PlyCount "79"]
[EventDate "2019.09.06"]
[EventType "swiss"]
[EventCountry "RUS"]
[SourceTitle "playchess.com"]
[Source "ChessBase"]
[SourceQuality "1"]
[TimeControl "900+10"]

1. e4 {[%emt 0:01:19]} e5 {[%emt 0:00:00]} 2. Nf3 {[%emt 0:00:02]} Nf6 {[%emt 0:00:00]} 3. d3 {[%emt 0:00:07]} Nc6 {[%emt 0:00:00]} 4. Nbd2 {[%emt 0:00:02]} d5 {[%emt 0:00:07]} 5. Be2 {[%emt 0:00:01]} Bc5 {[%emt 0:00:04]} 6. O-O {[%emt 0:00:03]} O-O {[%emt 0:00:03]} 7. c3 {[%emt 0:00:02]} a5 {[%emt 0:00:07]} 8. h3 {[%emt 0:00:05]} Re8 {[%emt 0:00:08]} 9. Re1 {[%emt 0:00:05]} a4 {[%emt 0:00:49]} 10. Qc2 {[%emt 0:00:03]} h6 {[%emt 0:01:41]} 11. exd5 {[%emt 0:00:21]} Nxd5 {[%emt 0:00:42]} 12. Ne4 {[%emt 0:00:22]} Ba7 {[%emt 0:00:26]} 13. Bd2 {[%emt 0:00:04]} f5 {[%emt 0:01:02]} 14. Ng3 {[%emt 0:00:02]} f4 {[%emt 0:00:08]} 15. Ne4 {[%emt 0:00:13]} Bf5 {[%emt 0:00:05]} 16. b4 {[%emt 0:00:05]} axb3 {[%emt 0:00:49]} 17. axb3 {[%emt 0:00:02]} Qd7 {[%emt 0:01:36]} 18. Bf1 {[%emt 0:00:28]} Kh8 {[%emt 0:00:22]} 19. b4 {[%emt 0:00:04]} b5 {[%emt 0:00:06]} 20. Qb3 {[%emt 0:00:21]} Nde7 {[%emt 0:01:18]} 21. Ra3 {[%emt 0:01:18]} Bb6 {[%emt 0:00:19]} 22. Rea1 {[%emt 0:00:28]} Rad8 {[%emt 0:00:22]} 23. Be1 {[%emt 0:00:24]} Ng6 {[%emt 0:00:07]} 24. Ra6 {[%emt 0:00:33]} Qe7 {[%emt 0:00:35]} 25. Nc5 {[%emt 0:01:48]} Nb8 {[%emt 0:00:33]} 26. Ra8 {[%emt 0:00:31]} Nd7 {[%emt 0:01:13]} 27. Rxd8 {[%emt 0:00:09]} Rxd8 {[%emt 0:00:01]} 28. d4 {[%emt 0:00:12]} e4 {[%emt 0:00:13]} 29. Nh2 {[%emt 0:00:57]} Nh4 {[%emt 0:01:06]} 30. f3 {[%emt 0:00:38]} e3 {[%emt 0:00:43]} 31. Bxb5 {[%emt 0:00:56]} Bxc5 {[%emt 0:00:33]} 32. bxc5 {[%emt 0:00:08]} Qg5 {[%emt 0:00:56]} 33. Ng4 {[%emt 0:00:36]} Rb8 {[%emt 0:00:40]} 34. Qa4 {[%emt 0:01:39]} Nf6 {[%emt 0:00:04]} 35. Bf1 {[%emt 0:00:10]} Nxf3+ {[%emt 0:01:10]} 36. gxf3 {[%emt 0:00:09]} h5 {[%emt 0:00:21]} 37. Qa2 {[%emt 0:00:45]} hxg4 {[%emt 0:00:22]} 38. hxg4 {[%emt 0:00:02]} g6 {[%emt 0:01:50]} 39. Qh2+ {[%emt 0:00:10]} Kg7 {[%emt 0:00:07]} 40. Bh4 {[%emt 0:00:05]} 1-0

[Event "Kurnosov Memorial Rapid 2019"]
[Site "Chelyabinsk"]
[Date "2019.09.06"]
[Round "3.9"]
[White "Potapov, Pavel"]
[Black "Matveev, Vladimir"]
[Result "0-1"]
[ECO "B09"]
[WhiteElo "2496"]
[BlackElo "2372"]
[Annotator "ChessBase"]
[PlyCount "102"]
[EventDate "2019.09.06"]
[EventType "swiss"]
[EventCountry "RUS"]
[SourceTitle "playchess.com"]
[Source "ChessBase"]
[SourceQuality "1"]
[TimeControl "900+10"]

1. e4 {[%emt 0:00:00]} d6 {[%emt 0:00:00]} 2. d4 {[%emt 0:00:00]} g6 {[%emt 0:00:00]} 3. Nc3 {[%emt 0:00:13]} Bg7 {[%emt 0:00:00]} 4. f4 {[%emt 0:00:05]} Nf6 {[%emt 0:00:00]} 5. Nf3 {[%emt 0:00:21]} c5 {[%emt 0:00:00]} 6. e5 {[%emt 0:01:28]} Nfd7 {[%emt 0:00:21]} 7. exd6 {[%emt 0:03:01]} O-O {[%emt 0:00:02]} 8. Be3 {[%emt 0:00:43]} exd6 {[%emt 0:01:06]} 9. Qd2 {[%emt 0:00:04]} Nc6 {[%emt 0:01:09]} 10. O-O-O {[%emt 0:00:11]} Re8 {[%emt 0:02:20]} 11. Bf2 {[%emt 0:00:30]} a6 {[%emt 0:00:54]} 12. h4 {[%emt 0:04:14]} Qa5 {[%emt 0:00:13]} 13. h5 {[%emt 0:00:41]} Nf6 {[%emt 0:00:25]} 14. h6 {[%emt 0:01:01]} Bh8 {[%emt 0:00:10]} 15. Kb1 {[%emt 0:00:59]} Bg4 {[%emt 0:00:11]} 16. Be2 {[%emt 0:01:28]} Ne4 {[%emt 0:02:19]} 17. Nxe4 {[%emt 0:00:10]} Rxe4 {[%emt 0:00:01]} 18. Qxa5 {[%emt 0:00:24]} Nxa5 {[%emt 0:00:01]} 19. Bd3 {[%emt 0:00:04]} Rxf4 {[%emt 0:00:05]} 20. dxc5 {[%emt 0:00:04]} dxc5 {[%emt 0:00:09]} 21. Bxc5 {[%emt 0:00:25]} Rxf3 {[%emt 0:00:27]} 22. gxf3 {[%emt 0:00:14]} Bxf3 {[%emt 0:00:01]} 23. Rhf1 {[%emt 0:00:15]} Bxd1 {[%emt 0:00:02]} 24. Rxd1 {[%emt 0:00:01]} Re8 {[%emt 0:02:19]} 25. a4 {[%emt 0:00:13]} Bf6 {[%emt 0:00:35]} 26. b4 {[%emt 0:00:31]} Nc6 {[%emt 0:00:01]} 27. Bc4 {[%emt 0:00:13]} Ne5 {[%emt 0:01:20]} 28. Bb3 {[%emt 0:00:18]} Bg5 {[%emt 0:00:45]} 29. Rh1 {[%emt 0:00:18]} Be7 {[%emt 0:01:24]} 30. Bxe7 {[%emt 0:00:33]} Rxe7 {[%emt 0:00:01]} 31. Rd1 {[%emt 0:00:04]} Kf8 {[%emt 0:00:11]} 32. c4 {[%emt 0:00:03]} Rd7 {[%emt 0:00:45]} 33. Re1 {[%emt 0:00:23]} Nd3 {[%emt 0:00:13]} 34. Rd1 {[%emt 0:00:01]} Ke7 {[%emt 0:00:01]} 35. b5 {[%emt 0:00:07]} Nc5 {[%emt 0:00:21]} 36. Re1+ {[%emt 0:00:01]} Kf6 {[%emt 0:00:30]} 37. Bc2 {[%emt 0:00:04]} Rd4 {[%emt 0:00:24]} 38. bxa6 {[%emt 0:00:20]} bxa6 {[%emt 0:00:04]} 39. Re8 {[%emt 0:00:02]} Rxc4 {[%emt 0:01:07]} 40. Rh8 {[%emt 0:00:04]} Nxa4 {[%emt 0:00:18]} 41. Rxh7 {[%emt 0:00:11]} Nc5 {[%emt 0:00:02]} 42. Rh8 {[%emt 0:00:13]} Rh4 {[%emt 0:00:03]} 43. Kb2 {[%emt 0:00:20]} a5 {[%emt 0:00:12]} 44. Rc8 {[%emt 0:00:25]} Ne6 {[%emt 0:00:03]} 45. Rh8 {[%emt 0:00:04]} Kg5 {[%emt 0:00:32]} 46. Rh7 {[%emt 0:00:26]} f5 {[%emt 0:00:01]} 47. Re7 {[%emt 0:00:04]} Nd4 {[%emt 0:00:01]} 48. Bd1 {[%emt 0:00:49]} Kxh6 {[%emt 0:00:18]} 49. Ra7 {[%emt 0:00:02]} Rh2+ {[%emt 0:00:16]} 50. Kc1 {[%emt 0:00:10]} Ra2 {[%emt 0:00:31]} 51. Kb1 {[%emt 0:00:07]} Nb5 {[%emt 0:00:04]} 0-1

[Event "Kurnosov Memorial Rapid 2019"]
[Site "Chelyabinsk"]
[Date "2019.09.06"]
[Round "3.10"]
[White "Urazayev, Arystanbek"]
[Black "Romanov, Evgeny"]
[Result "0-1"]
[ECO "C60"]
[WhiteElo "2442"]
[BlackElo "2579"]
[Annotator "RC"]
[PlyCount "156"]
[EventDate "2019.09.06"]
[EventType "swiss"]
[EventCountry "RUS"]
[SourceTitle "playchess.com"]
[Source "ChessBase"]
[SourceQuality "1"]
[TimeControl "900+10"]

1. e4 {[%emt 0:00:00]} e5 {[%emt 0:00:00]} 2. Nf3 {[%emt 0:00:00]} Nc6 {[%emt 0:00:00]} 3. Bb5 {[%emt 0:00:00]} g6 {[%emt 0:00:02]} 4. d4 {[%emt 0:00:00]} exd4 {[%emt 0:00:02]} 5. Bg5 {[%emt 0:00:04]} Be7 {[%emt 0:00:02]} 6. Bxe7 {[%emt 0:00:05]} Qxe7 {[%emt 0:00:01]} 7. Bxc6 {[%emt 0:00:04]} dxc6 {[%emt 0:00:02]} 8. Qxd4 {[%emt 0:00:04]} Nf6 {[%emt 0:00:02]} 9. Nc3 {[%emt 0:00:15]} Bg4 {[%emt 0:00:02]} 10. Nd2 {[%emt 0:00:02]} c5 {[%emt 0:00:02]} 11. Qe3 {[%emt 0:00:07]} O-O-O {[%emt 0:00:04]} 12. h3 {[%emt 0:00:03]} Bd7 {[%emt 0:00:07]} 13. O-O-O {[%emt 0:00:03]} Bc6 {[%emt 0:00:08]} 14. f3 {[%emt 0:00:02]} b6 {[%emt 0:00:18]} 15. Qg5 {[%emt 0:01:09]} h6 {[%emt 0:00:39]} 16. Qg3 {[%emt 0:00:57]} Nh5 {[%emt 0:00:35]} 17. Qf2 {[%emt 0:00:46]} Nf4 {[%emt 0:00:11]} 18. Kb1 {[%emt 0:01:07]} h5 {[%emt 0:01:21]} 19. h4 {[%emt 0:00:28]} Ne6 {[%emt 0:02:21]} 20. Nc4 {[%emt 0:00:51]} Nd4 {[%emt 0:00:14]} 21. Ne3 {[%emt 0:00:52]} f5 {[%emt 0:02:28]} 22. Ned5 {[%emt 0:01:48]} Qd6 {[%emt 0:00:02]} 23. Rhe1 {[%emt 0:01:32]} fxe4 {[%emt 0:00:05]} 24. fxe4 {[%emt 0:00:12]} Rhf8 {[%emt 0:00:02]} 25. Qe3 {[%emt 0:00:08]} Qe5 {[%emt 0:00:01]} 26. a4 {[%emt 0:00:52]} a5 {[%emt 0:00:58]} 27. Qg5 {[%emt 0:02:07]} Qxg5 {[%emt 0:00:49]} 28. hxg5 {[%emt 0:00:02]} Rf2 {[%emt 0:01:52]} 29. Rf1 {[%emt 0:02:21]} Rdf8 {[%emt 0:02:56]} 30. Rxf2 {[%emt 0:00:02]} Rxf2 {[%emt 0:00:02]} 31. Ne7+ {[%emt 0:00:50]} Kb7 {[%emt 0:00:00]} 32. Nxg6 {[%emt 0:00:32]} Rxg2 {[%emt 0:00:16]} 33. Nf4 {[%emt 0:00:22]} Rxg5 {[%emt 0:00:05]} 34. Rh1 {[%emt 0:00:02]} Rg4 {[%emt 0:01:11]} 35. Nxh5 {[%emt 0:00:25]} Bxe4 {[%emt 0:00:01]} 36. Nxe4 {[%emt 0:00:01]} Rxe4 {[%emt 0:00:02]} 37. Nf6 {[%emt 0:00:24]} Re2 {[%emt 0:00:13]} 38. c3 {[%emt 0:00:21]} Nb3 {[%emt 0:00:09]} 39. Ka2 {[%emt 0:00:21]} c4 {[%emt 0:00:08]} 40. Nd5 {[%emt 0:00:43]} Kc6 {[%emt 0:00:56]} 41. Nf4 {[%emt 0:00:02]} Rf2 {[%emt 0:00:20]} 42. Ne6 {[%emt 0:00:34]} Kd7 {[%emt 0:00:24]} 43. Re1 {[%emt 0:00:26]} c6 {[%emt 0:00:51]} 44. Ka3 {[%emt 0:00:21]} Rd2 {[%emt 0:00:23]} 45. Ng5 {[%emt 0:00:28]} Rg2 {[%emt 0:00:29]} 46. Nf3 {[%emt 0:00:14]} Kd6 {[%emt 0:00:26]} 47. Rd1+ {[%emt 0:00:11]} Kc7 {[%emt 0:00:30]} 48. Nd4 {[%emt 0:00:19]} Nc5 {[%emt 0:00:16]} 49. Rh1 {[%emt 0:00:03]} Nd3 {[%emt 0:00:28]} 50. Rh7+ {[%emt 0:00:14]} Kd6 {[%emt 0:00:09]} 51. Rh6+ {[%emt 0:00:05]} Kd5 {[%emt 0:00:01]} 52. Rh5+ {[%emt 0:00:21]} Ke4 {[%emt 0:00:01]} 53. Nxc6 {[%emt 0:00:05]} Rg1 {[%emt 0:00:26]} 54. Rh4+ {[%emt 0:00:03]} Kd5 {[%emt 0:00:01]} 55. Ne7+ {[%emt 0:00:01]} Ke6 {[%emt 0:00:10]} 56. Re4+ {[%emt 0:00:09]} Kd7 {[%emt 0:00:04]} 57. Rxc4 Kxe7 {[%emt 0:00:00]} 58. Re4+ {[%emt 0:00:42]} Kf7 {[%emt 0:00:00]} 59. b4 {[%emt 0:00:02]} Rb1 {[%emt 0:00:22]} 60. Ka2 {[%emt 0:00:10]} Rb2+ {[%emt 0:00:08]} 61. Ka3 {[%emt 0:00:02]} Rf2 {[%emt 0:00:14]} 62. Kb3 {[%emt 0:00:06]} Rf5 {[%emt 0:00:34]} 63. Kc4 {[%emt 0:00:17]} Nf4 {[%emt 0:00:05]} 64. Kb3 {[%emt 0:00:18]} Ne6 {[%emt 0:00:03]} 65. Rh4 {[%emt 0:00:05]} Ke7 {[%emt 0:00:09]} 66. Rh7+ {[%emt 0:00:10]} Kd6 {[%emt 0:00:01]} 67. Kc4 {[%emt 0:00:07]} Kc6 {[%emt 0:00:12]} 68. b5+ {[%emt 0:00:15]} Kd6 {[%emt 0:00:03]} 69. Rh6 {[%emt 0:00:14]} Rf4+ {[%emt 0:00:02]} 70. Kb3 {[%emt 0:00:01]} Ke5 {[%emt 0:00:12]} 71. Ka3 {[%emt 0:00:12]} Kd5 {[%emt 0:00:12]} 72. Rh5+ {[%emt 0:00:07]} Kc4 {[%emt 0:00:07]} 73. Rh6 {[%emt 0:00:07]} Re4 {[%emt 0:00:02]} 74. Kb2 {[%emt 0:00:06]} Re2+ {[%emt 0:00:02]} 75. Ka3 {[%emt 0:00:01]} Kxc3 {[%emt 0:00:27]} 76. Rh3+ {[%emt 0:00:04]} Kd4 {[%emt 0:00:04]} 77. Rh4+ {[%emt 0:00:15]} Re4 {[%emt 0:00:02]} 78. Rh8 {[%emt 0:00:07]} Nc5 {[%emt 0:00:07]} 0-1